bitfinex-derivatives/quotes_SOLF0:USTF0_20260204
["timestamp","ask_amount","ask_price","bid_price","bid_amount"]
[1770225007836,9.8671,91.368,91.301,10.43930474]
[1770225008428,9.93725364,91.375,91.303,10.43930474]
[1770225008429,9.8681,91.359,91.303,10.43930474]
[1770225008631,9.93725364,91.375,91.303,10.43930474]
[1770225009228,9.8707,91.335,91.281,9.8764]
[1770225009533,9.93725364,91.375,91.282,10.43930474]
[1770225009737,9.8693,91.348,91.284,20.31540474]
[1770225009938,9.8693,91.348,91.285,10.43930474]
[1770225010930,9.8693,91.348,91.288,9.8757]
[1770225011128,9.93725364,91.375,91.285,10.43930474]
[1770225011533,9.8716,91.327,91.285,10.43930474]
[1770225011940,9.8716,91.327,91.26,10.43930474]
[1770225012538,9.93725364,91.348,91.26,10.43930474]
[1770225012840,9.93725364,91.348,91.246,211.26]
[1770225012841,9.93725364,91.348,91.262,10.43930474]
[1770225013139,9.93725364,91.348,91.284,0.06941617]
[1770225013635,9.93725364,91.348,91.262,10.43930474]
[1770225016943,9.8715,91.327,91.271,10.43930474]
[1770225017935,9.8724,91.319,91.271,10.43930474]
[1770225018140,9.93725364,91.348,91.271,10.43930474]
[1770225018545,9.93725364,91.348,91.212,133.2]
[1770225018546,9.8716,91.326,91.272,10.43930474]
[1770225018748,9.93725364,91.348,91.272,10.43930474]
[1770225019249,9.8706,91.336,91.277,10.43930474]
[1770225019447,9.93725364,91.348,91.277,10.43930474]
[1770225019949,9.8715,91.328,91.278,9.8768]
[1770225020145,9.93725364,91.348,91.195,153.7783]
[1770225020443,3.09080652,91.289,91.19,11.02171731]
[1770225020844,3.09080652,91.289,91.191,9.8862]
[1770225021047,3.09080652,91.289,91.192,11.02171731]
[1770225021447,9.95545668,91.332,91.154,87.42]
[1770225021448,3.90380976,91.311,91.201,10.68481358]
[1770225021750,3.90380976,91.309,91.201,10.68481358]
[1770225021940,3.90380976,91.307,91.201,10.68481358]
[1770225022141,4.05846108,91.305,91.201,10.68481358]
[1770225022445,9.8784,91.264,91.201,10.68481358]
[1770225022844,8.01513484,91.301,91.201,10.68481358]
[1770225023047,4.05846108,91.307,91.201,10.68481358]
[1770225023242,9.8766,91.28,91.202,10.70357015]
[1770225025254,4.05846108,91.307,91.211,12.18495818]
[1770225026043,9.8765,91.281,91.211,12.18495818]
[1770225026248,4.44444665,91.287,91.211,12.18495818]
[1770225026649,4.44444665,91.285,91.181,12.18495818]
[1770225026855,4.44444665,91.283,91.181,12.18495818]
[1770225027049,4.44444665,91.281,91.181,12.18495818]
[1770225027247,153.6132,91.294,91.181,12.18495818]
[1770225027248,4.29037094,91.26,91.181,12.18495818]
[1770225027649,4.29037094,91.258,91.181,12.18495818]
[1770225027845,4.29037094,91.258,91.072,153.9859]
[1770225027846,4.29037094,91.235,91.098,12.18495818]
[1770225028050,4.29037094,91.219,91.098,12.18495818]
[1770225028353,4.28079092,91.217,91.111,12.18495818]
[1770225028658,9.8837,91.215,91.111,12.18495818]
[1770225028946,4.28079092,91.217,91.111,12.18495818]
[1770225029142,4.20898709,91.212,91.111,12.18495818]
[1770225029345,4.20898709,91.192,91.111,12.18495818]
[1770225029542,4.20898709,91.184,91.089,12.18495818]
[1770225029741,9.8889,91.167,91.089,12.18495818]
[1770225029941,8.02830658,91.166,91.089,12.18495818]
[1770225030148,13.26890035,91.203,91.047,138.9]
[1770225030149,4.19964615,91.164,91.08,1.9094493]
[1770225030365,4.19964615,91.14,91.048,12.18495818]
[1770225030649,8.02830658,91.139,91.048,12.18495818]
[1770225030850,4.19964615,91.161,91.061,12.18495818]
[1770225031052,4.19964615,91.161,91.081,12.18495818]
[1770225031448,9.8896,91.16,91.081,12.18495818]
[1770225031749,4.70075844,91.158,91.058,12.18495818]
[1770225031950,9.8927,91.132,91.058,12.18495818]
[1770225032154,8.9357345,91.149,91.058,12.18495818]
[1770225032454,4.6914685,91.172,91.061,12.18495818]
[1770225032652,4.6914685,91.17,91.061,12.18495818]
[1770225032854,4.6914685,91.153,91.061,12.18495818]
[1770225033049,4.9174749,91.148,91.061,12.18495818]
[1770225033260,4.9174749,91.125,91.029,12.18495818]
[1770225033854,4.9174749,91.122,91.029,12.18495818]
[1770225034351,4.90832399,91.118,91.029,12.18495818]
[1770225034661,4.90832399,91.17,91.051,12.18495818]
[1770225034957,4.90832399,91.17,91.071,12.18495818]
[1770225035557,5.07228389,91.147,91.047,12.18495818]
[1770225035755,5.07228389,91.144,91.047,12.18495818]
[1770225035949,9.8953,91.108,91.047,12.18495818]
[1770225036150,9.8953,91.108,91.024,12.18495818]
[1770225036355,5.06328937,91.139,91.031,12.18495818]
[1770225036756,5.06328937,91.162,91.058,12.18495818]
[1770225036955,5.06328937,91.162,91.071,12.18495818]
[1770225037355,5.06328937,91.162,91.047,12.18495818]
[1770225037551,5.06328937,91.162,91.05,6.8599634]
[1770225037756,5.06328937,91.162,91.071,12.18495818]
[1770225037955,5.92790093,91.179,91.071,12.18495818]
[1770225038758,9.8899,91.157,91.071,12.18495818]
[1770225039656,6.12174334,91.172,91.071,12.18495818]
[1770225039854,153.759,91.208,91.081,12.18495818]
[1770225040055,6.12174334,91.189,91.081,12.18495818]
[1770225040360,9.8886,91.17,91.081,12.18495818]
[1770225040561,6.11283958,91.169,91.081,12.18495818]
[1770225040760,9.89,91.157,91.081,12.18495818]
[1770225040955,6.8599634,91.19,91.081,12.18495818]
[1770225040956,6.11283958,91.156,91.081,12.18495818]
[1770225041659,9.8912,91.146,91.081,12.18495818]
[1770225042156,9.8912,91.146,91.104,0.07013987]
[1770225042955,6.10178354,91.136,91.057,12.18495818]
[1770225043955,6.10767158,91.158,91.059,12.18495818]
[1770225044659,9.8913,91.145,91.07,12.18495818]
[1770225044868,6.10767158,91.144,91.07,12.18495818]
[1770225045357,9.8923,91.136,91.07,12.18495818]
[1770225045563,8.88300116,91.203,91.043,212.22]
[1770225045564,6.07043395,91.189,91.081,12.18495818]
[1770225046061,9.8907,91.15,91.081,12.18495818]
[1770225046460,6.06212629,91.166,91.081,12.18495818]
[1770225047155,6.06212629,91.166,91.083,12.18495818]
[1770225047854,0.0693067,91.133,91.083,12.18495818]
[1770225048253,0.0693067,91.133,91.057,12.18495818]
[1770225048958,9.8926,91.133,91.057,12.18495818]
[1770225049163,6.00418477,91.146,91.057,12.18495818]
[1770225049362,9.8941,91.119,91.057,12.18495818]
[1770225049553,6.00418477,91.146,91.057,12.18495818]
[1770225050360,9.8925,91.133,91.061,12.18495818]
[1770225050556,6.00418477,91.146,91.061,12.18495818]
[1770225051457,9.8924,91.135,91.069,12.18495818]
[1770225051662,5.36025021,91.167,91.069,12.18495818]
[1770225051861,5.36025021,91.163,91.013,32.95]
[1770225052156,5.36025021,91.163,90.988,12.18495818]
[1770225052157,5.36025021,91.096,91.014,12.18495818]
[1770225052559,5.35266693,91.12,91.029,12.18495818]
[1770225052765,5.35266693,91.143,91.041,12.18495818]
[1770225052964,5.35266693,91.127,91.041,12.18495818]
[1770225054467,6.01465948,91.114,91.041,12.18495818]
[1770225054958,9.8956,91.105,91.041,12.18495818]
[1770225055162,4.60015974,91.135,91.041,12.18495818]
[1770225055957,4.60015974,91.135,91.042,9.9023]
[1770225055958,9.894,91.12,91.042,9.9023]
[1770225056158,9.894,91.12,91.043,12.52443393]
[1770225056360,14.49255974,91.135,91.045,12.52443393]
[1770225056760,4.60015974,91.135,91.045,12.52443393]
[1770225057664,9.8937,91.123,91.045,12.52443393]
[1770225058762,9.8937,91.123,91.047,9.9018]
[1770225058963,9.8937,91.123,91.045,12.52443393]
[1770225059364,9.8952,91.109,91.045,12.52443393]
[1770225060469,4.60015974,91.135,91.045,12.52443393]
[1770225060961,9.8952,91.109,91.045,12.52443393]
[1770225061364,6.8599634,91.17,91.045,12.52443393]
[1770225061365,4.46256251,91.16,91.045,12.52443393]
[1770225061565,4.46256251,91.18,91.084,11.61495065]
[1770225062073,4.45614096,91.201,91.107,11.61495065]
[1770225062268,6.8599634,91.22,91.107,11.61495065]
[1770225062466,4.45614096,91.218,91.107,11.61495065]
[1770225062666,4.45614096,91.216,91.109,11.61495065]
[1770225062968,4.45614096,91.214,91.061,11.61495065]
[1770225063167,4.7531165,91.191,91.108,11.61495065]
[1770225063563,2.74509836,91.211,91.108,11.61495065]
[1770225063771,4.7531165,91.212,91.144,11.61495065]
[1770225064370,4.74677588,91.25,91.144,11.61495065]
[1770225064565,9.8838,91.214,91.153,9.8902]
[1770225064871,4.74677588,91.246,91.154,11.61495065]
[1770225065066,4.74677588,91.244,91.154,11.61495065]
[1770225065268,4.37643571,91.224,91.154,11.61495065]
[1770225065473,4.37643571,91.222,91.154,11.61495065]
[1770225065773,4.37643571,91.22,91.154,11.61495065]
[1770225065968,9.8844,91.208,91.154,11.61495065]
[1770225066170,4.37643571,91.22,91.154,11.61495065]
[1770225066673,2.7446244,91.219,91.154,11.61495065]
[1770225066966,2.7446244,91.218,91.154,11.61495065]
[1770225067173,2.7446244,91.217,91.154,11.61495065]
[1770225067375,4.37643571,91.22,91.164,9.8891]
[1770225067667,4.37643571,91.22,91.154,11.61495065]
[1770225067668,2.7443777,91.219,91.176,0.06970676]
[1770225067972,8.56316524,91.239,91.176,0.06970676]
[1770225068170,3.99829145,91.217,91.079,11.61495065]
[1770225068469,2.74432415,91.216,91.097,11.61495065]
[1770225068672,2.74432415,91.216,91.09,6.8599634]
[1770225068673,2.74432415,91.215,91.133,11.61495065]
[1770225068870,3.99829145,91.213,91.133,11.61495065]
[1770225069072,6.8599634,91.23,91.133,11.61495065]
[1770225069073,3.99829145,91.211,91.133,11.61495065]
[1770225069277,2.74432415,91.21,91.133,11.61495065]
[1770225069479,19.759,91.254,91.133,11.61495065]
[1770225069480,3.98942815,91.208,91.133,11.61495065]
[1770225069680,9.8875,91.18,91.133,11.61495065]
[1770225069972,8.5499747,91.205,91.133,11.61495065]
[1770225070173,11.294995,91.204,91.133,11.61495065]
[1770225070379,9.8866,91.188,91.133,11.61495065]
[1770225070574,2.74501984,91.187,91.133,11.61495065]
[1770225070774,3.98942815,91.206,91.133,11.61495065]
[1770225070978,3.98364517,91.204,91.133,11.61495065]
[1770225071178,11.30905604,91.203,91.133,11.61495065]
[1770225071379,11.30905604,91.202,91.133,11.61495065]
[1770225071582,11.30905604,91.201,91.133,11.61495065]
[1770225071881,2.74492537,91.2,91.133,11.61495065]
[1770225072077,2.74492537,91.199,91.143,21.50635065]
[1770225072282,11.33589201,91.198,91.143,21.50635065]
[1770225072483,21.22149201,91.197,91.144,11.61495065]
[1770225072674,11.33785621,91.196,91.144,11.61495065]
[1770225072879,11.33785621,91.195,91.144,11.61495065]
[1770225073078,11.33621041,91.194,91.144,11.61495065]
[1770225073280,11.33621041,91.193,91.144,11.61495065]
[1770225073481,2.74492537,91.192,91.144,11.61495065]
[1770225073685,9.8865,91.189,91.129,9.8928]
[1770225073881,11.33636709,91.188,91.13,11.61495065]
[1770225074184,3.97760956,91.225,91.13,11.61495065]
[1770225074385,12.56816545,91.224,91.13,11.61495065]
[1770225074688,9.93997099,91.228,91.091,19.7941]
[1770225074689,12.56816545,91.223,91.14,11.61495065]
[1770225074978,3.97760956,91.206,91.12,11.61495065]
[1770225075184,3.97760956,91.206,91.08,6.8599634]
[1770225075185,8.59055589,91.205,91.122,11.61495065]
[1770225075374,8.59055589,91.204,91.122,11.61495065]
[1770225075579,13.13293055,91.244,91.11,6.8599634]
[1770225075580,12.6991193,91.255,91.173,11.61495065]
[1770225076082,12.6991193,91.241,91.121,11.61495065]
[1770225076276,12.6991193,91.241,91.148,11.61495065]
[1770225076782,9.8809,91.24,91.167,11.61495065]
[1770225077085,6.8599634,91.28,91.167,11.61495065]
[1770225077086,12.6991193,91.259,91.167,11.61495065]
[1770225077284,12.6991193,91.259,91.191,11.61495065]
[1770225077981,12.6991193,91.28,91.204,11.61495065]
[1770225078382,9.8768,91.278,91.204,11.61495065]
[1770225078886,12.6991193,91.28,91.204,11.61495065]
[1770225079088,12.6991193,91.304,91.206,11.61495065]
[1770225079484,12.6991193,91.304,91.217,11.61495065]
[1770225079887,12.6991193,91.334,91.217,11.61495065]
[1770225080079,12.6991193,91.328,91.241,11.61495065]
[1770225080481,12.6991193,91.328,91.266,0.06928707]
[1770225080990,12.6991193,91.328,91.241,11.61495065]
[1770225081384,6.87197139,91.34,91.241,11.61495065]
[1770225081385,12.6991193,91.315,91.242,9.8806]
[1770225081690,12.6991193,91.315,91.241,11.61495065]
[1770225082787,12.6991193,91.339,91.241,11.61495065]
[1770225083191,12.6991193,91.339,91.269,0.06965528]
[1770225083393,22.5693193,91.339,91.269,0.06965528]
[1770225083586,12.6991193,91.338,91.269,0.06965528]
[1770225083786,12.6991193,91.338,91.257,9.879]
[1770225084095,12.75159141,91.332,91.268,9.8779]
[1770225084487,6.87197139,91.37,91.269,12.93087994]
[1770225084488,12.75159141,91.353,91.269,12.93087994]
[1770225084689,12.75159141,91.353,91.297,9.8746]
[1770225084889,9.8665,91.374,91.291,12.93087994]
[1770225084890,12.75159141,91.374,91.291,12.93087994]
[1770225085294,12.75159141,91.373,91.298,12.93087994]
[1770225085692,12.75159141,91.371,91.298,12.93087994]
[1770225085987,12.75159141,91.371,91.24,6.87197139]
[1770225085988,12.75159141,91.369,91.273,12.93087994]
[1770225086195,12.75159141,91.343,91.273,12.93087994]
[1770225086394,12.75159141,91.341,91.273,12.93087994]
[1770225086590,12.75159141,91.339,91.273,12.93087994]
[1770225086790,2.74108409,91.338,91.273,12.93087994]
[1770225087092,9.8703,91.338,91.273,12.93087994]
[1770225087387,12.75159141,91.339,91.273,12.93087994]
[1770225087992,13.13293055,91.413,91.273,12.93087994]
[1770225087993,12.75159141,91.361,91.273,12.93087994]
[1770225088994,9.8665,91.374,91.302,12.93087994]
[1770225089191,6.87197139,91.41,91.302,12.93087994]
[1770225089192,12.75159141,91.373,91.302,12.93087994]
[1770225089894,12.75159141,91.373,91.303,12.93087994]
[1770225090594,12.75159141,91.368,91.241,12.93087994]
[1770225091090,9.8702,91.34,91.266,12.93087994]
[1770225091291,9.8702,91.34,91.295,0.06927426]
[1770225091493,12.75159141,91.347,91.295,0.06927426]
[1770225091993,9.8714,91.328,91.266,12.93087994]
[1770225092194,12.75159141,91.347,91.266,12.93087994]
[1770225092695,12.75159141,91.345,91.266,12.93087994]
[1770225092895,9.8725,91.318,91.266,12.93087994]
[1770225093193,12.75159141,91.345,91.266,12.93087994]
[1770225093689,12.75159141,91.345,91.22,6.87197139]
[1770225093690,12.75159141,91.345,91.284,12.93087994]
[1770225093996,15.49197684,91.377,91.284,12.93087994]
[1770225094196,9.8707,91.335,91.284,12.93087994]
[1770225094396,12.75159141,91.358,91.284,12.93087994]
[1770225094597,12.75159141,91.358,91.285,9.876]
[1770225094797,12.75159141,91.358,91.285,12.93087994]
[1770225095195,12.75159141,91.358,91.231,12.93087994]
[1770225095397,6.87197139,91.38,91.254,12.93087994]
[1770225095398,22.62199141,91.338,91.254,12.93087994]
[1770225096194,12.75159141,91.331,91.254,12.93087994]
[1770225096794,12.75159141,91.331,91.266,12.93087994]
[1770225097097,12.75159141,91.351,91.266,12.93087994]
[1770225097297,12.75159141,91.379,91.266,12.93087994]
[1770225097699,22.61809141,91.374,91.293,12.93087994]
[1770225098301,22.61809141,91.374,91.297,12.93087994]
[1770225098695,9.8675,91.365,91.297,12.93087994]
[1770225098896,9.8675,91.365,91.326,0.06945798]
[1770225099690,12.75159141,91.374,91.326,0.06945798]
[1770225100092,9.8643,91.394,91.326,0.06945798]
[1770225100397,6.87197139,91.41,91.326,0.06945798]
[1770225100398,12.75159141,91.393,91.326,0.06945798]
[1770225100597,12.75159141,91.393,91.318,9.8724]
[1770225100598,12.75159141,91.393,91.327,9.8714]
[1770225100797,12.75159141,91.393,91.327,22.80227994]
[1770225101097,12.75159141,91.393,91.327,12.93087994]
[1770225101497,12.75159141,91.393,91.307,12.93087994]
[1770225101894,12.75159141,91.373,91.307,12.93087994]
[1770225102801,12.75159141,91.373,91.317,9.8725]
[1770225103101,12.75159141,91.373,91.307,12.93087994]
[1770225103596,12.75159141,91.408,91.328,12.93087994]
[1770225103899,12.75159141,91.406,91.328,12.93087994]
[1770225104095,9.8653,91.385,91.329,9.8712]
[1770225104495,12.75159141,91.402,91.329,9.8712]
[1770225104697,12.75159141,91.394,91.338,9.8703]
[1770225104892,15.49095486,91.393,91.338,9.8703]
[1770225105092,2.73936345,91.392,91.338,9.8703]
[1770225105292,9.8646,91.391,91.338,9.8703]
[1770225105497,12.75159141,91.393,91.347,9.8693]
[1770225105803,12.75159141,91.413,91.328,12.93087994]
[1770225106204,12.75159141,91.413,91.374,9.8664]
[1770225106704,12.75159141,91.411,91.349,9.8691]
[1770225106900,12.75159141,91.409,91.329,12.93087994]
[1770225107100,12.75159141,91.406,91.329,12.93087994]
[1770225107297,2.73898623,91.405,91.329,12.93087994]
[1770225107504,9.8644,91.393,91.329,12.93087994]
[1770225108005,2.7394871,91.392,91.338,9.8702]
[1770225108197,9.8659,91.38,91.291,12.93087994]
[1770225108401,2.73968627,91.379,91.325,9.8716]
[1770225108702,9.8681,91.359,91.277,12.93087994]
[1770225108903,15.49184006,91.358,91.294,9.8751]
[1770225109103,12.75159141,91.358,91.294,9.8751]
[1770225109702,12.75159141,91.358,91.286,12.93087994]
[1770225110101,12.75159141,91.358,91.29,9.8755]
[1770225110302,9.8664,91.375,91.286,12.93087994]
[1770225110602,2.73978683,91.374,91.286,12.93087994]
[1770225110904,2.73978683,91.373,91.286,12.93087994]
[1770225111100,2.73978683,91.372,91.286,12.93087994]
[1770225111300,2.73978683,91.371,91.286,12.93087994]
[1770225111609,2.73978683,91.37,91.31,12.93087994]
[1770225111811,2.73978683,91.369,91.31,12.93087994]
[1770225112009,12.75159141,91.383,91.319,0.06958544]
[1770225112211,2.73988638,91.382,91.319,0.06958544]
[1770225112411,2.73988638,91.381,91.319,0.06958544]
[1770225112709,12.75159141,91.383,91.31,12.93087994]
[1770225112710,9.8661,91.377,91.31,12.93087994]
[1770225112907,12.75159141,91.383,91.31,12.93087994]
[1770225113117,12.75159141,91.429,91.322,12.93087994]
[1770225113312,12.75159141,91.427,91.322,12.93087994]
[1770225113605,12.75159141,91.425,91.322,12.93087994]
[1770225113909,15.20690598,91.423,91.322,12.93087994]
[1770225114106,15.20690598,91.421,91.322,12.93087994]
[1770225114310,15.20690598,91.419,91.333,9.8708]
[1770225114507,15.20690598,91.419,91.29,6.87197139]
[1770225114508,15.20690598,91.417,91.334,14.68204287]
[1770225114701,15.20690598,91.415,91.334,14.68204287]
[1770225114903,15.20690598,91.413,91.334,14.68204287]
[1770225115114,9.8639,91.398,91.335,14.68204287]
[1770225115302,2.73900873,91.397,91.335,14.68204287]
[1770225115503,2.73900873,91.396,91.335,14.68204287]
[1770225115701,15.20690598,91.411,91.335,14.68204287]
[1770225116004,15.20690598,91.409,91.335,14.68204287]
[1770225116202,9.8641,91.396,91.335,14.68204287]
[1770225116401,2.73900921,91.395,91.335,14.68204287]
[1770225116608,15.20690598,91.409,91.335,14.68204287]
[1770225116807,9.862,91.415,91.361,24.54984287]
[1770225117007,19.7154,91.456,91.362,14.68204287]
[1770225117210,2.73772312,91.455,91.362,14.68204287]
[1770225117408,2.73772312,91.455,91.36,6.87197139]
[1770225117409,15.20690598,91.482,91.41,14.68204287]
[1770225117609,15.20690598,91.482,91.361,14.68204287]
[1770225117913,153.2532,91.509,91.34,19.7401]
[1770225117914,15.20690598,91.461,91.38,14.68204287]
[1770225118209,14.99891304,91.509,91.381,15.75332358]
[1770225118415,14.99891304,91.509,91.401,15.75332358]
[1770225118607,6.87197139,91.55,91.375,153.4752]
[1770225118608,14.99891304,91.531,91.441,15.75332358]
[1770225119013,9.8508,91.52,91.456,15.75332358]
[1770225119214,14.99891304,91.531,91.456,15.75332358]
[1770225119919,14.99891304,91.569,91.456,15.75332358]
[1770225120312,8.77373024,91.59,91.483,15.75332358]
[1770225120313,1.90175885,91.59,91.483,15.75332358]
[1770225120531,14.99891304,91.591,91.483,15.75332358]
[1770225120847,14.99891304,91.566,91.484,15.75332358]
[1770225121012,14.99891304,91.566,91.462,15.75332358]
[1770225121210,153.1148,91.591,91.462,15.75332358]
[1770225121211,9.8506,91.522,91.462,15.75332358]
[1770225121408,153.1148,91.591,91.462,15.75332358]
[1770225121409,14.99891304,91.564,91.462,15.75332358]
[1770225121720,14.99891304,91.564,91.423,153.3958]
[1770225121721,14.99891304,91.578,91.488,15.75332358]
[1770225122213,14.99891304,91.599,91.491,15.75332358]
[1770225122416,14.99891304,91.619,91.511,15.75332358]
[1770225122611,9.77962224,91.647,91.48,153.3001]
[1770225122612,14.99891304,91.641,91.531,15.75332358]
[1770225123122,14.99891304,91.629,91.531,15.75332358]
[1770225123415,14.99891304,91.609,91.471,15.75332358]
[1770225123618,153.0552,91.627,91.471,15.75332358]
[1770225123619,14.99891304,91.589,91.471,15.75332358]
[1770225123920,14.99891304,91.589,91.502,15.75332358]
[1770225124416,14.99891304,91.587,91.502,15.75332358]
[1770225124618,6.87197139,91.58,91.502,15.75332358]
[1770225124812,14.99891304,91.579,91.451,15.75332358]
[1770225125021,14.99891304,91.556,91.451,15.75332358]
[1770225125716,9.847,91.555,91.453,9.8579]
[1770225125921,14.99891304,91.554,91.454,15.75332358]
[1770225126119,14.99891304,91.539,91.413,15.75332358]
[1770225126320,14.99891304,91.535,91.439,15.75332358]
[1770225127025,14.99891304,91.535,91.442,15.75332358]
[1770225127920,14.99891304,91.535,91.447,9.8585]
[1770225128125,14.99891304,91.535,91.448,15.75332358]
[1770225128321,14.99891304,91.532,91.413,15.75332358]
[1770225128525,14.99891304,91.519,91.413,15.75332358]
[1770225128724,6.87197139,91.52,91.413,15.75332358]
[1770225128725,9.8542,91.488,91.413,15.75332358]
[1770225128921,14.99891304,91.555,91.413,15.75332358]
[1770225129124,14.99891304,91.529,91.413,15.75332358]
[1770225129622,14.99891304,91.529,91.415,15.75332358]
[1770225129817,9.8517,91.511,91.462,0.06896342]
[1770225130021,14.99891304,91.51,91.462,0.06896342]
[1770225130322,14.99891304,91.51,91.436,15.75332358]
[1770225130524,14.99891304,91.501,91.436,15.75332358]
[1770225131227,14.99891304,91.554,91.45,6.87197139]
[1770225131425,14.99891304,91.554,91.451,15.75332358]
[1770225131623,14.99891304,91.554,91.478,9.8551]
[1770225131829,14.99891304,91.554,91.478,15.75332358]
[1770225132320,14.99891304,91.589,91.478,15.75332358]
[1770225133322,9.8476,91.55,91.478,15.75332358]
[1770225133523,14.99891304,91.549,91.456,15.75332358]
[1770225133920,9.8518,91.51,91.456,15.75332358]
[1770225134130,14.99891304,91.521,91.456,15.75332358]
[1770225134927,24.84991304,91.517,91.437,15.75332358]
[1770225135126,14.99891304,91.517,91.437,15.75332358]
[1770225135323,14.99891304,91.517,91.413,15.75332358]
[1770225136735,9.8528,91.501,91.426,15.75332358]
[1770225137434,6.87197139,91.53,91.426,15.75332358]
[1770225137435,9.854,91.49,91.426,15.75332358]
[1770225137637,24.85291304,91.49,91.426,15.75332358]
[1770225137934,14.99891304,91.49,91.426,15.75332358]
[1770225138437,6.87197139,91.54,91.426,15.75332358]
[1770225138639,14.99891304,91.539,91.426,15.75332358]
[1770225139033,9.8499,91.528,91.451,15.75332358]
[1770225140038,9.851,91.517,91.452,9.858]
[1770225140244,14.99891304,91.516,91.431,15.75332358]
[1770225140448,9.8516,91.512,91.434,15.75332358]
[1770225140736,14.99891304,91.516,91.434,15.75332358]
[1770225141140,14.99891304,91.537,91.46,15.75332358]
[1770225141938,14.99891304,91.559,91.475,15.75332358]
[1770225142436,14.99891304,91.559,91.493,25.60682358]
[1770225143037,14.99891304,91.557,91.482,9.8548]
[1770225143234,14.99891304,91.557,91.473,15.75332358]
[1770225143838,9.8476,91.549,91.475,17.95399133]
[1770225144041,14.99891304,91.557,91.475,17.95399133]
[1770225144248,14.99891304,91.557,91.502,9.8525]
[1770225144443,9.8458,91.566,91.495,17.95399133]
[1770225144840,9.8458,91.566,91.503,9.8525]
[1770225145034,17.52869561,91.577,91.495,17.95399133]
[1770225145942,17.52869561,91.619,91.501,17.95399133]
[1770225146243,17.52869561,91.59,91.522,9.8504]
[1770225146437,17.52869561,91.59,91.501,17.95399133]
[1770225146840,17.52869561,91.566,91.502,9.8526]
[1770225147035,17.52869561,91.566,91.501,17.95399133]
[1770225147238,17.52869561,91.609,91.501,17.95399133]
[1770225147448,17.52869561,91.594,91.501,17.95399133]
[1770225148145,17.52869561,91.594,91.533,9.8493]
[1770225149143,17.52869561,91.594,91.523,9.8503]
[1770225149646,17.52869561,91.594,91.52,17.95399133]
[1770225150145,17.52869561,91.594,91.532,9.8494]
[1770225150341,17.52869561,91.629,91.52,17.95399133]
[1770225150844,17.52869561,91.627,91.543,17.95399133]
[1770225151446,19.49812333,91.617,91.511,19.56522008]
[1770225152045,19.49812333,91.594,91.519,9.8507]
[1770225152340,19.49812333,91.594,91.519,19.56522008]
[1770225152644,19.49812333,91.664,91.551,19.56522008]
[1770225152947,8.73709727,91.67,91.551,19.56522008]
[1770225152948,19.49812333,91.649,91.551,19.56522008]
[1770225153147,19.49812333,91.612,91.551,19.56522008]
[1770225153442,19.49812333,91.634,91.551,19.56522008]
[1770225153653,9.8405,91.615,91.555,9.8468]
[1770225153946,9.8405,91.615,91.551,19.56522008]
[1770225154346,9.8419,91.602,91.532,9.8493]
[1770225154545,19.49812333,91.615,91.528,19.56522008]
[1770225154951,19.49812333,91.615,91.533,19.56522008]
[1770225155751,6.83691162,91.66,91.558,29.41182008]
[1770225155752,9.8396,91.624,91.558,29.41182008]
[1770225156050,19.49812333,91.635,91.559,19.56522008]
[1770225156246,9.8395,91.624,91.559,19.56522008]
[1770225156447,19.49812333,91.623,91.537,19.56522008]
[1770225156841,29.33832333,91.618,91.541,19.56522008]
[1770225157244,19.49812333,91.617,91.541,19.56522008]
[1770225157445,19.49812333,91.617,91.548,19.56522008]
[1770225157841,9.8387,91.632,91.564,19.56522008]
[1770225158047,19.49812333,91.657,91.564,19.56522008]
[1770225158250,19.49812333,91.657,91.571,19.56522008]
[1770225158449,9.8375,91.643,91.577,19.56522008]
[1770225158740,19.49812333,91.657,91.577,19.56522008]
[1770225158940,9.8363,91.654,91.579,9.8443]
[1770225159150,19.49812333,91.657,91.58,19.56522008]
[1770225159445,19.49812333,91.657,91.551,19.56522008]
[1770225159648,6.83691162,91.68,91.566,9.8457]
[1770225159649,9.8383,91.636,91.566,9.8457]
[1770225160151,9.8383,91.636,91.57,29.41042008]
[1770225160354,19.49812333,91.638,91.571,19.56522008]
[1770225160648,19.49812333,91.679,91.588,9.8433]
[1770225160853,9.8369,91.648,91.588,9.8433]
[1770225161247,9.8369,91.648,91.577,19.56522008]
[1770225161649,19.49812333,91.656,91.577,19.56522008]
[1770225161951,19.49812333,91.686,91.603,29.40692008]
[1770225162252,19.49812333,91.664,91.603,19.56522008]
[1770225163043,19.49812333,91.664,91.584,19.56522008]
[1770225163542,19.49812333,91.664,91.591,19.56522008]
[1770225163947,19.49812333,91.664,91.594,9.8427]
[1770225164345,19.49812333,91.664,91.594,29.40792008]
[1770225164654,19.49812333,91.664,91.604,9.8416]
[1770225165551,19.49812333,91.664,91.594,19.56522008]
[1770225166150,19.49812333,91.664,91.595,9.8425]
[1770225166549,9.8357,91.66,91.595,9.8425]
[1770225166857,19.49812333,91.659,91.595,29.40772008]